Cogmind - Beta 13 X1 @@@ ROGUE MODE // 2023.11.25 @ 21:22:40 Player: alice_fexa Result: Destroyed by LJ-A3F(R) with Subdweller Machine Gun Performance ------------- Evolutions (0) 0 Regions Visited (3) 600 Robots Destroyed (40) 200 Value Destroyed (709) 709 Prototype IDs (3) 60 Alien Tech Used (0) 0 Bonus (-953) -953 TOTAL SCORE: 616 Bonus ------- Friendly Fire -953 Cogmind --------- Core Integrity 0/250 Matter 143/300 Energy 200/200 System Corruption 0% Temperature Cool (0) Movement Walking (130) Location -10/Subcaves Parts ------- > --- POWER (1) -------- Subdweller Power Source > --- PROPULSION (2) --- Cargo Legs > --- UTILITY (2+1) ---- Small Storage Unit Subdweller Optics Improved Targeting Computer (+) > --- WEAPON (2) ------- Light Cannon Light Cannon > --- INVENTORY (8) ---- Light Treads Armored Wheel Subdweller Optics Subdweller Laser Assault Rifle Battle Rifle Subdweller Machine Gun Makeshift Axe Peak State ------------ > --- POWER ------------ Subdweller Power Source > --- PROPULSION ------- Cargo Legs > --- UTILITY ---------- Small Storage Unit Subdweller Optics Subdweller Optics Improved Targeting Computer > --- WEAPON ----------- Light Cannon Light Cannon > --- INVENTORY -------- Light Treads Armored Wheel Subdweller Optics Assault Rifle Battle Rifle Subdweller Machine Gun Makeshift Axe [Rating: 28] Favorites ----------- Power Light Ion Engine Engine Light Ion Engine Propulsion Light Treads Treads Light Treads Leg Cargo Legs Wheel Armored Wheel Utility Small Storage Unit Device Subdweller Optics Storage Small Storage Unit Processor Improved Targeting Computer Protection Light Armor Plating Weapon Light Cannon Energy Gun Medium Laser Ballistic Gun Assault Rifle Ballistic Cannon Light Cannon Launcher Grenade Launcher Special Weapon Multitool Slashing Weapon Makeshift Axe Build | -11 -10 -10 -10 ------- Run | Jun Mat Min Sub Slots Evolved . | . . . . Power . | . . . . Propulsion . | . . . . Utility . | . . . . Weapon . | . . . . Parts Attached 49 | 7 10 . 32 Power 7 | 2 1 . 4 Engine 7 | 2 1 . 4 Core . | . . . . Reactor . | . . . . Propulsion 9 | 2 2 . 5 Treads 3 | 1 1 . 1 Leg 1 | . . . 1 Wheel 5 | 1 1 . 3 Hover . | . . . . Flight . | . . . . Utility 7 | 1 2 . 4 Device 3 | . . . 3 Storage 1 | 1 . . . Processor 1 | . . . 1 Hackware . | . . . . Protection 2 | . 2 . . Artifact . | . . . . Weapon 26 | 2 5 . 19 Energy Gun 3 | 1 . . 2 Energy Cannon . | . . . . Ballistic Gun 9 | 1 2 . 6 Ballistic Cannon 10 | . 3 . 7 Launcher 1 | . . . 1 Special Weapon 1 | . . . 1 Impact Weapon . | . . . . Slashing Weapon 2 | . . . 2 Piercing Weapon . | . . . . Special Melee Weapon . | . . . . Unidentified Prototypes 1 | . . . 1 Parts Lost 8 | . 1 . 7 Power 1 | . . . 1 Propulsion 1 | . . . 1 Utility 3 | . 1 . 2 Weapon 3 | . . . 3 Highest Loss Streak 2 | . 1 . 2 To Critical Strikes . | . . . . Average Slot Usage (%) 98 | . 99 100 95 Engine 13 | . 14 14 13 Treads 12 | . 14 14 11 Wheel 12 | . 14 14 11 Device 4 | . . . 13 Storage 13 | . 14 14 13 Protection 9 | . 13 14 1 Ballistic Gun 11 | . 10 14 11 Ballistic Cannon 15 | . 17 14 13 Naked Turns . | . . . . Heaviest Build 20 | 13 19 16 20 Greatest Support 55 | 20 20 20 55 Greatest Overweight (x) 2 | 2 1 . 1 Average Overweight (x) . | . . . . Largest Inventory Capacity 8 | 8 8 8 8 Average Capacity 7 | 7 8 8 8 Most Carried 8 | 5 8 8 8 Average Carried 7 | 2 7 8 7 Final Capacity 8 | 8 8 8 8 Final Carried 8 | 5 8 8 8 Class Distribution -------------------- 93% | Mutant 6% | Scavenger-Mutant Dominant Class ---------------- Mutant | -10/Materials Mutant | -10/Mines Mutant | -10/Subcaves Resources | -11 -10 -10 -10 ----------- Run | Jun Mat Min Sub Matter Collected 1232 | 277 341 75 539 Remotely . | . . . . Salvage Created 986 | 104 345 160 377 Parts 72 | 9 36 2 25 Haulers Intercepted 2 | . 2 . . Recyclers Shooed 1 | . 1 . . Parts Field Recycled . | . . . . Retrieved Matter . | . . . . Parts Self-Destructed 5 | . . . 5 Prevented . | . . . . Kills | -11 -10 -10 -10 ------- Run | Jun Mat Min Sub Combat Hostiles Destroyed 25 | . 10 . 15 Guns 8 | . 2 . 6 Cannons 12 | . 8 . 4 AOE 4 | . . . 4 Classes Destroyed 11 | 2 6 . 3 Builder 1 | . 1 . . Tunneler 2 | 2 . . . Hauler 2 | . 2 . . Recycler 3 | 1 1 1 . Operator 1 | . 1 . . Turret 2 | . . . 2 Watcher 3 | . 3 . . Swarmer 15 | . 9 . 6 Grunt 1 | . 1 . . Artisan 1 | . . . 1 Subdweller 9 | . . . 9 Best Kill Streak 5 | 3 5 1 4 Combat Bots Only 4 | . 3 . 4 Max Kills in Single Turn 2 | 1 1 1 2 Gunslinging . | . . . . Exploded 2 | . . . 2 Melee . | . . . . Uniques/NPCs Destroyed 1 | . . 1 . YI-UF0 (-10/Mines) Combat | -11 -10 -10 -10 -------- Run | Jun Mat Min Sub Damage Taken 1556 | . 277 . 1279 Core 258 | . 33 . 225 Absorbed by Shields . | . . . . Core Remaining (%) 100 | 100 . . . Volleys Fired 113 | 7 39 8 59 Largest 2 | 2 2 2 2 Hottest 70 | 70 70 55 70 Shots Fired 222 | 14 77 16 115 Gun 89 | 14 19 8 48 Cannon 130 | . 58 8 64 Launcher 3 | . . . 3 Special . | . . . . Kinetic 208 | 7 77 16 108 Thermal 11 | 7 . . 4 Explosive 3 | . . . 3 Electromagnetic . | . . . . Robot Hit Streak 17 | 5 8 9 17 Robot Miss Streak 4 | 1 4 1 2 Penetration Max . | . . . . Secondary Targets . | . . . . Autonomous 4 | . . . 4 Shots Hit Robots 137 | 10 42 12 73 Core Hits 55 | 5 21 5 24 Critical Kills 1 | . . 1 . Critical Parts Destroyed . | . . . . Critical Strikes 6 | . 2 1 3 Destroy 1 | . . 1 . Blast 5 | . 2 . 3 Melee Attacks 1 | . . . 1 Impact . | . . . . Slashing 1 | . . . 1 Piercing . | . . . . Sneak Attacks . | . . . . Combat Hostiles . | . . . . Follow-up Attacks . | . . . . Damage Inflicted 2153 | 100 600 180 1273 Guns 702 | 100 146 93 363 Cannons 1215 | . 454 87 674 Explosions 154 | . . . 154 Melee 82 | . . . 82 Ramming . | . . . . Kinetic 1789 | 38 600 180 971 Thermal 128 | 62 . . 66 Explosive 154 | . . . 154 Electromagnetic . | . . . . Impact . | . . . . Slashing 82 | . . . 82 Piercing . | . . . . Highest Corruption . | . . . . Average Corruption . | . . . . Corruption Purged . | . . . . Corruption Blocked . | . . . . Overload Shots . | . . . . Overflow Damage 40 | . . . 40 Projectiles 8 | . . . 8 Explosions . | . . . . Melee 32 | . . . 32 Knockbacks 9 | . 4 3 2 Impact . | . . . . Kinetic 9 | . 4 3 2 Secondary . | . . . . Self-Inflicted Damage 11 | . . . 11 Shots 1 | . . . 1 Rammed . | . . . . Targets Rammed . | . . . . Kicked . | . . . . Crushed . | . . . . Highest Temperature 144 | 100 144 12 82 Average Temperature 34 | 41 38 5 30 Received Heat Transfer 198 | . 12 . 186 Siege Activations . | . . . . Robots Corrupted . | . . . . Combat Hostiles . | . . . . Parts Fried . | . . . . Impact Corruptions . | . . . . Robots Melted . | . . . . Combat Hostiles . | . . . . Parts Melted . | . . . . Heat Transferred 410 | 185 . . 225 Parts Sabotaged . | . . . . Parts Stolen . | . . . . Parts Stripped . | . . . . Power Chain Reactions . | . . . . Missiles Intercepted . | . . . . Alert | -11 -10 -10 -10 ------- Run | Jun Mat Min Sub Peak Influence 260 | 15 260 21 . Initial 10 | . 9 10 . Average 72 | 3 95 14 . Maximum Alert Level 1 | . 1 . . Low Security (%) 96 | 100 94 100 . Level 1 3 | . 5 . . Level 2 . | . . . . Level 3 . | . . . . Level 4 . | . . . . Level 5 . | . . . . High Security . | . . . . Max Security . | . . . . Squads Dispatched . | . . . . Investigation . | . . . . Extermination . | . . . . Reinforcement . | . . . . Assault . | . . . . Garrison . | . . . . Intercept . | . . . . Searches Triggered . | . . . . Construction Impeded . | . . . . Haulers Reinforced . | . . . . Active Scanning Responses . | . . . . Cargo Convoy Interrupts . | . . . . Stealth | -11 -10 -10 -10 --------- Run | Jun Mat Min Sub Distress Signals 3 | . 3 . . Communications Jammed . | . . . . Distress Signals . | . . . . Times Spotted 74 | . 17 . 57 Peak Tracking Total 4 | . 4 . 4 Tactical Retreats 6 | . 1 . 5 Traps | -11 -10 -10 -10 ------- Run | Jun Mat Min Sub Traps Triggered 4 | . 1 . 3 Indirectly . | . . . . Trap Hack Attempts . | . . . . Triggered . | . . . . Disarmed . | . . . . Reprogrammed . | . . . . Reused . | . . . . Traps Extracted . | . . . . Installed . | . . . . Triggered . | . . . . Machines | -11 -10 -10 -10 ---------- Run | Jun Mat Min Sub Machines Disabled 1 | . . . 1 Max in Single Turn 1 | . . . 1 Machines Repaired . | . . . . Machines Sabotaged . | . . . . Overloaded Fab Kills . | . . . . Hacking | -11 -10 -10 -10 --------- Run | Jun Mat Min Sub Machines Accessed 8 | . 7 1 . Terminals 8 | . 7 1 . Fabricators . | . . . . Repair Stations . | . . . . Recycling Units . | . . . . Scanalyzers . | . . . . Garrison Access . | . . . . Total Hacks 22 | . 19 3 . Successful 4 | . 3 1 . Failed 18 | . 16 2 . Catastrophic 3 | . 2 1 . Database Lockouts . | . . . . Manual 18 | . 15 3 . Terminals 22 | . 19 3 . Fabricators . | . . . . Repair Stations . | . . . . Recycling Units . | . . . . Scanalyzers . | . . . . Garrison Access . | . . . . Terminal Hacks 3 | . 2 1 . Prototype ID Bank 1 | . 1 . . Locate Traps 1 | . 1 . . Zone Layout 1 | . . 1 . Fabricator Hacks . | . . . . Repair Station Hacks . | . . . . Recycling Unit Hacks . | . . . . Scanalyzer . | . . . . Garrison Access Hacks . | . . . . Unauthorized Hacks 1 | . 1 . . Terminals 1 | . 1 . . Botnet 1 | . 1 . . Fabricators . | . . . . Repair Stations . | . . . . Recycling Units . | . . . . Scanalyzers . | . . . . Garrison Access . | . . . . Data Cores Recovered . | . . . . Used . | . . . . Hacking Detections 8 | . 7 1 . Full Trace Events . | . . . . Feedback Events . | . . . . Feedback Blocked . | . . . . Robot Schematics Acquired . | . . . . Robots Built . | . . . . Authchips . | . . . . Time . | . . . . Total Robot Build Rating . | . . . . Part Schematics Acquired . | . . . . Parts Built . | . . . . Authchips . | . . . . Time . | . . . . Total Part Build Rating . | . . . . Parts Repaired . | . . . . Time . | . . . . Parts Recycled . | . . . . Recycled Matter . | . . . . Retrieved Matter . | . . . . Retrieved Components . | . . . . Parts Scanalyzed . | . . . . Part Schematics Acquired . | . . . . Parts Damaged . | . . . . Bothacking | -11 -10 -10 -10 ------------ Run | Jun Mat Min Sub Used RIF Installer . | . . . . Robots Hacked . | . . . . Non-combat . | . . . . Combat . | . . . . Robot Hacks Applied . | . . . . Relay Couplers Released . | . . . . Fabnet Peak Effective % . | . . . . Robots Rewired . | . . . . Allies Hacked . | . . . . Hacks Repelled . | . . . . Allies | -11 -10 -10 -10 -------- Run | Jun Mat Min Sub Total Allies . | . . . . Largest Group . | . . . . Highest-Rated Group . | . . . . Highest-Rated Ally . | . . . . Total Orders . | . . . . Ally Attacks . | . . . . Total Damage . | . . . . Kills . | . . . . Allies Corrupted . | . . . . Allies Melted . | . . . . Intel | -11 -10 -10 -10 ------- Run | Jun Mat Min Sub Robot Analysis Total . | . . . . Derelict Logs Recovered 2 | . . . 2 Drone Launches . | . . . . Drone Recoveries . | . . . . Exploration | -11 -10 -10 -10 ------------- Run | Jun Mat Min Sub Turns Passed 2388 | 90 1108 340 850 Spaces Moved 1450 | 45 673 193 539 Core 7 | 7 . . . Treads 622 | 8 411 193 10 Legs 86 | . . . 86 Wheels 735 | 30 262 . 443 Hover . | . . . . Flight . | . . . . Fastest Speed 50 | 50 90 160 90 Average Speed 129 | 106 137 160 109 Slowest Speed 160 | 160 160 160 160 Overloaded Moves . | . . . . Propulsion Burnouts . | . . . . Robots Hopped . | . . . . Cave-ins Triggered . | . . . . Exploration Rate (%) 49 | 5 99 53 39 Regions Visited 3 Branch Regions 2 Pre-discovered Areas 2 | . . . 2 Known Exits Taken . | . . . . Unknown Exits Taken 3 | 1 1 1 . Scrap Searched 1 | . . 1 . Spaces Dug . | . . . . Terrain Destroyed 19 | . . . 19 Melee . | . . . . Projectile . | . . . . AOE 19 | . . . 19 Terrain Rammed . | . . . . Walls Destroyed . | . . . . Machines Disabled . | . . . . Actions | -11 -10 -10 -10 --------- Run | Jun Mat Min Sub Total 1751 | 71 784 209 687 Wait 89 | 9 48 7 25 Move 1447 | 44 672 192 539 Hop . | . . . . Pick Up 23 | 4 7 1 11 Fast Attach 21 | 6 3 . 12 Attach 7 | . . . 7 Detach . | . . . . Swap 21 | 1 7 . 13 Drop 29 | . 8 1 20 Fire 113 | 7 39 8 59 Melee 1 | . . . 1 Ram . | . . . . Kick . | . . . . Crush . | . . . . Escape Stasis . | . . . . Rewire . | . . . . Trap . | . . . . Miscellaneous . | . . . . Route ------- -11/Junkyard -10/Materials (discovered 4 exits: [*Mat x3] / *Min) -10/Mines (discovered 4 exits: [*Mat x2] / [*Exi] / [*Sub]) -10/Subcaves (discovered 1 exit: [*Rec]) History --------- Turn | Location | Event 16 | -11/Junkyard | Discovered new exit (range 13) 91 | -11/Junkyard | Entered Materials 318 | -10/Materials | Build established: Mutant 330 | -10/Materials | Discovered new exit (range 15) 520 | -10/Materials | Discovered new exit (range 13) 891 | -10/Materials | Discovered new exit (range 15) 1081 | -10/Materials | Discovered new exit (range 10) 1199 | -10/Materials | Entered Mines 1247 | -10/Mines | Found a hidden stash of uninstalled traps 1306 | -10/Mines | Discovered new exit (range 6) 1317 | -10/Mines | Discovered new exit (range 9) 1325 | -10/Mines | Deemed a non-threat by the Exiles lab entrance 1417 | -10/Mines | YI-UF0 nonchalantly dropped a Grenade Launcher on the ground 1458 | -10/Mines | Destroyed YI-UF0 1502 | -10/Mines | Discovered new exit (range 12) 1536 | -10/Mines | Discovered new exit (range 3) 1539 | -10/Mines | Entered Subcaves 1544 | -10/Subcaves | Shifting Twisted Machinery released Battle Rifle 1563 | -10/Subcaves | Learned location of Recycling (-8) 1898 | -10/Subcaves | Shifting Twisted Machinery released Mak. System Restoration Module 1940 | -10/Subcaves | Shifting Twisted Machinery released Mak. Axe 2060 | -10/Subcaves | Core integrity fell below 50% 2103 | -10/Subcaves | Discovered new exit (range 19) 2180 | -10/Subcaves | A Subdweller sparked back to life 2180 | -10/Subcaves | A Subdweller sparked back to life 2180 | -10/Subcaves | A Subdweller sparked back to life 2204 | -10/Subcaves | A swath of the cavern ceiling suddenly collapsed 2207 | -10/Subcaves | Core integrity fell below 20% 2217 | -10/Subcaves | Found Prototype Leg 2217 | -10/Subcaves | Identified Cargo Legs 2219 | -10/Subcaves | Attached Cargo Legs, gained temporary slots: Utility x2 2389 | -10/Subcaves | Destroyed by LJ-A3F(R) with Subdweller Machine Gun Last Messages --------------- 02217_ Identified Cargo Legs. 02219_ Core temporarily expanded with Utility slot. 02221_ Acquired Sub. Optics. 02223_ Acquired 22 matter. 02225_ Acquired Lgt. Treads. 02228_ Acquired Sub. Machine Gun. 02230_ Acquired 17 matter. 02246_ Acquired 6 matter. 02255_ Acquired 4 matter. 02256_ Sub. Power Source shoots sparks and powers down. 02256_ Dropped Broken Sub. Power Source. 02259_ Acquired Sub. Optics. 02267_ Acquired Sub. Laser. 02283_ Acquired 13 matter. 02339_ Sub. Optics shoots sparks and powers down. 02364_ HJ-MXK(R) suffers critical hit (Blast). 02364_ HJ-MXK(R) destroyed. 02379_ Broken Sub. Optics destroyed. 02382_ Temporary Utility slot lost. 02382_ QJ-1DU(R) destroyed. Map ----- +----------------------------------------------------+ | ?????????????????????????????????????????????????? | | ?????????????????????????????????????????????????? | | ?????????????????????????????????????????????????? | | ?????????????????????????????????????????????????? | | ?????????????????????????????????????????????????? | | ?????????????????????????????????????????????????? | | ?????????????????????????????????????????????????? | | ?????????????????????????????????????????????????? | | ?????????????????????????????????????????????????? | | ?????????????????????????????????????????????????? | | ?????????????????????????????????????????????????? | | ???????????????????#?????????????????????????????? | | ?????????????#????## ????????????????????????????? | | ????????????## ??## ???##???????????????????????? | | ???????????## ### #??# ##?????????????????????? | | ???????????# #?# #?????????????????????? | | ???????????# ## #?????????????????????? | | ????????????# ##????????????????????? | | ?????????????# #????????????????????? | | ?????????????# ##???????????????????? | | ??????????????? ##??????????????????? | | ????????????????? ############???##??? | | ??????????????????? # ??? | | ????????????????????# % %% ??? | | ?????????????????????# % % &%* ???? | | ???????????????????????# @ ###????????? | | ??????????????????????## #????????? | | ??????????????????????# ## R% #?? | | ??????????????????????# ## #### ##% #??? | | ??????????????????????##### ##???????????? | | ?????????????????####?????# #???????????? | | ?????????????????# ###### % ####???????????? | | ?????????????????# ## ##?????????????? | | ??????????????????# ### #?????????????? | | ???????????????????# #### #??##?????????? | | ???????????????????# #?# ## ##????????# | | ???????????????????# ### # ##??????? | | ???????????????????# ## ;#; ##?????? | | ???????????????????## ###;##; #?????? | | ???????????????####?# #"""";;";# ???????? | | ???????????????# ##### ##""##";#";" ???????? | | ???????????????# ???####"#"#"""#"##" ? %??????? | | ???????????????# #####?##""""##""#??# #????? | | ????????????????# " ####""###" ###??#% ##????? | | ????????????????# " #&"###""## ####???##?????? | | ????????????????# "&# ## #%##""" ##?????????? | | ????????????????## " "& ##? "###""""##??##????? | | ?????????????????# # "*& #### # #"#""#### ?????? | | ?????????????????## # ####&####???##""## ??????? | | ??????????????????######### ""##???## ### ???????? | +----------------------------------------------------+ Best States ------------- Heat Dissipation 25 Energy Generation 15 Energy Capacity 250 Matter Stores 300 Matter Capacity 300 Sight Range 21 Terrain Scan Density 10 Armor Coverage 150 Evasion (%) 55 Targeting Accuracy 6 Recoil Reduction 1 Item Schematics ----------------- None Robot Schematics ------------------ None Fabricated ------------ Nothing Alien Tech Used ----------------- None Achievements -------------- None Challenges ------------ None Game ------ Seed StealthVisualRegenerator Manual? 0 Play Time 00:19:11 Cumulative 1242.2 hours Start 2023.11.25 @ 21:05:19 End 2023.11.25 @ 21:22:40 Sessions 1 Manual Loads 0 Difficulty Rogue Special Mode None Game No. 902 Rogue 862 Adventurer 40 Explorer 0 Win Type - Total 145 Types 71/7/42/2/1/4/15/2/1 Lore% 90 Gallery% 94 Achievement% 82 Wizard Run 0 Options --------- ASCII 0 Keyboard 0 Movement Numpad Keybinds 0 Fullscreen 0 Font 20/Terminus Map View 76x50 Tactical HUD 1 Map Filters NONE Filters NONE Steam 1 RUN: a9144828-8397-41d7-a580-23928c39acef